Cogmind - Beta 13 @@@ ROGUE MODE // 2024.03.13 @ 01:02:58 Player: Fusha Result: Destroyed by G-34 Mercenary with Small Laser Performance ------------- Evolutions (1) 500 Regions Visited (3) 600 Robots Destroyed (66) 330 Value Destroyed (1499) 1499 Prototype IDs (5) 100 Alien Tech Used (0) 0 Bonus (2) 2 TOTAL SCORE: 3031 Bonus ------- High Alert Combat Kills 2 Cogmind --------- Core Integrity 0/400 Matter 300/300 Energy 280/280 System Corruption 0% Temperature Cool (55) Movement Treading (160) Location -9/Storage Parts ------- > --- POWER (1) -------- Heavy Ion Engine > --- PROPULSION (2) --- Light Treads Improved Treads > --- UTILITY (4) ------ Improved Heat Sink Medium Storage Unit Signal Interpreter Hacking Suite > --- WEAPON (2) ------- Beam Rifle Particle Gun > --- INVENTORY (10) --- Heavy Ion Engine Light Treads Light Treads Light Treads Medium Armor Plating Medium Armor Plating Light Regenerative Plating Beam Rifle Rocket Launcher Rocket Launcher Peak State ------------ > --- POWER ------------ Heavy Ion Engine > --- PROPULSION ------- Improved Treads Improved Treads > --- UTILITY ---------- Improved Heat Sink Medium Storage Unit Signal Interpreter Hacking Suite > --- WEAPON ----------- Beam Rifle Particle Gun > --- INVENTORY -------- Heavy Ion Engine Heavy Ion Engine Light Treads Improved Treads High-capacity Matter Pod Medium Armor Plating Medium Armor Plating Light Regenerative Plating Rocket Launcher Rocket Launcher [Rating: 21] Favorites ----------- Power Heavy Ion Engine Engine Heavy Ion Engine Power Core Light Nuclear Core Propulsion Improved Treads Treads Improved Treads Leg Aluminum Leg Wheel Compact Wheel Utility Medium Storage Unit Device Heat Sink Storage Medium Storage Unit Processor Signal Interpreter Hackware Hacking Suite Protection Core Shielding Weapon Light Assault Rifle Energy Gun Beam Rifle Energy Cannon Beam Cannon Ballistic Gun Light Assault Rifle Build | -11 -10 -9 -9 ------- Run | Yrd Mat Mat Sto Slots Evolved 2 | . . 2 . Power . | . . . . Propulsion . | . . . . Utility 2 | . . 2 . Weapon . | . . . . Parts Attached 45 | 6 8 22 9 Power 9 | 1 1 6 1 Engine 8 | 1 . 6 1 Core 1 | . 1 . . Reactor . | . . . . Propulsion 12 | 2 2 4 4 Treads 6 | . . 2 4 Leg 4 | 2 . 2 . Wheel 2 | . 2 . . Hover . | . . . . Flight . | . . . . Utility 15 | 1 4 8 2 Device 4 | 1 . 2 1 Storage 6 | . 3 3 . Processor 2 | . . 2 . Hackware 1 | . . . 1 Protection 2 | . 1 1 . Artifact . | . . . . Weapon 9 | 2 1 4 2 Energy Gun 4 | 1 . 1 2 Energy Cannon 1 | . 1 . . Ballistic Gun 4 | 1 . 3 . Ballistic Cannon . | . . . . Launcher . | . . . . Special Weapon . | . . . . Impact Weapon . | . . . . Slashing Weapon . | . . . . Piercing Weapon . | . . . . Special Melee Weapon . | . . . . Unidentified Prototypes . | . . . . Parts Lost 4 | . 1 2 1 Power . | . . . . Propulsion 3 | . 1 2 . Utility . | . . . . Weapon 1 | . . . 1 Highest Loss Streak 2 | . 1 2 1 To Critical Strikes . | . . . . Average Slot Usage (%) 98 | . 98 96 99 Engine 10 | . 10 10 11 Core 1 | . 3 . . Treads 13 | . . 9 21 Leg 6 | . 19 8 . Wheel 2 | . 7 3 . Device 8 | . 4 8 11 Storage 17 | . 13 20 16 Processor 8 | . . 8 11 Hackware 2 | . . . 5 Protection 3 | . 9 3 . Energy Gun 10 | . 3 6 17 Energy Cannon 2 | . 10 . . Ballistic Gun 10 | . 14 14 4 Naked Turns . | . . . . Heaviest Build 29 | 7 21 27 29 Greatest Support 46 | 20 26 43 46 Greatest Overweight (x) 1 | . 1 1 1 Average Overweight (x) . | . . . . Largest Inventory Capacity 10 | 5 10 10 10 Average Capacity 9 | 5 6 9 10 Most Carried 10 | 3 6 10 10 Average Carried 7 | 1 3 8 9 Final Capacity 10 | 5 10 10 10 Final Carried 10 | 2 5 10 10 Class Distribution -------------------- 62% | Scavenger-Mutant 37% | Mutant Dominant Class ---------------- Mutant | -10/Materials Scavenger-Mutant | -9/Materials Scavenger-Mutant | -9/Storage Resources | -11 -10 -9 -9 ----------- Run | Yrd Mat Mat Sto Matter Collected 1198 | 269 366 415 148 Remotely . | . . . . Salvage Created 2535 | 115 512 566 1342 Parts 145 | 8 20 59 58 Haulers Intercepted 2 | . . . 2 Recyclers Shooed 5 | . 2 1 2 Parts Field Recycled . | . . . . Retrieved Matter . | . . . . Parts Self-Destructed . | . . . . Prevented . | . . . . Kills | -11 -10 -9 -9 ------- Run | Yrd Mat Mat Sto Combat Hostiles Destroyed 46 | 1 7 19 19 Guns 39 | 1 3 17 18 Cannons 6 | . 4 2 . Classes Destroyed 10 | 3 2 3 2 Worker 3 | 1 . 1 1 Tunneler 2 | 2 . . . Hauler 2 | . . . 2 Recycler 6 | . 3 . 3 Mechanic 1 | . . . 1 Operator 3 | . . 3 . Watcher 3 | . . 2 1 Swarmer 17 | . 3 14 . Grunt 18 | 1 4 3 10 Sentry 11 | . . 2 9 Best Kill Streak 6 | 2 6 4 4 Combat Bots Only 5 | 1 5 4 3 Max Kills in Single Turn 1 | 1 1 1 1 Gunslinging . | . . . . Exploded . | . . . . Melee . | . . . . Uniques/NPCs Destroyed . | . . . . Combat | -11 -10 -9 -9 -------- Run | Yrd Mat Mat Sto Hostile Shots Fired 243 | 4 37 115 87 Missed 56 | 1 6 27 22 Damage Taken 2112 | 34 341 887 850 Core 505 | 11 88 197 209 Absorbed by Shields . | . . . . Redirected to Shielding 45 | . 14 31 . Core Remaining (%) 77 | 95 60 . . Volleys Fired 235 | 11 33 87 104 Largest 2 | 2 2 2 2 Hottest 121 | 60 80 80 121 Shots Fired 444 | 14 66 163 201 Gun 401 | 14 35 151 201 Cannon 43 | . 31 12 . Launcher . | . . . . Special . | . . . . Kinetic 197 | 3 33 119 42 Thermal 247 | 11 33 44 159 Explosive . | . . . . Electromagnetic . | . . . . Robot Hit Streak 11 | 2 7 11 10 Robot Miss Streak 5 | 3 4 5 4 Penetration Max . | . . . . Secondary Targets 3 | . . 2 1 Max Gunslinging Chain 1 | . . 1 1 Shots Hit Robots 266 | 7 33 94 132 Core Hits 108 | 5 15 41 47 Critical Kills . | . . . . Critical Parts Destroyed . | . . . . Critical Strikes 6 | . . . 6 Burn 6 | . . . 6 Melee Attacks . | . . . . Impact . | . . . . Slashing . | . . . . Piercing . | . . . . Sneak Attacks . | . . . . Combat Hostiles . | . . . . Follow-up Attacks . | . . . . Damage Inflicted 3349 | 99 523 931 1796 Guns 2932 | 99 209 828 1796 Cannons 417 | . 314 103 . Explosions . | . . . . Melee . | . . . . Ramming . | . . . . Kinetic 1025 | 12 209 610 194 Thermal 2324 | 87 314 321 1602 Explosive . | . . . . Electromagnetic . | . . . . Impact . | . . . . Slashing . | . . . . Piercing . | . . . . Highest Corruption . | . . . . Average Corruption . | . . . . Corruption Purged . | . . . . Corruption Blocked . | . . . . Overload Shots . | . . . . Overflow Damage . | . . . . Projectiles . | . . . . Explosions . | . . . . Melee . | . . . . Knockbacks . | . . . . Impact . | . . . . Kinetic . | . . . . Secondary . | . . . . Self-Inflicted Damage . | . . . . Shots . | . . . . Rammed . | . . . . Targets Rammed . | . . . . Kicked . | . . . . Crushed . | . . . . Highest Temperature 249 | 12 214 36 249 Average Temperature 51 | 9 86 11 44 Received Heat Transfer 738 | 18 138 192 390 Siege Activations . | . . . . Robots Corrupted . | . . . . Combat Hostiles . | . . . . Parts Fried . | . . . . Impact Corruptions . | . . . . Robots Melted 2 | . . . 2 Combat Hostiles 1 | . . . 1 Parts Melted 11 | . 1 . 10 Heat Transferred 6083 | 200 666 777 4440 Parts Sabotaged . | . . . . Parts Stolen . | . . . . Parts Stripped . | . . . . Power Chain Reactions . | . . . . Alert | -11 -10 -9 -9 ------- Run | Yrd Mat Mat Sto Peak Influence 412 | 35 284 412 369 Initial 108 | . 22 35 108 Average 203 | 14 142 231 225 Maximum Alert Level 2 | . 1 2 1 Low Security (%) 39 | 100 59 34 28 Level 1 57 | . 40 57 71 Level 2 3 | . . 7 . Level 3 . | . . . . Level 4 . | . . . . Level 5 . | . . . . High Security . | . . . . Max Security . | . . . . Squads Dispatched 6 | . 1 1 4 Investigation 1 | . . . 1 Extermination . | . . . . Reinforcement 3 | . 1 1 1 Assault . | . . . . Garrison 2 | . . . 2 Intercept . | . . . . Searches Triggered . | . . . . Construction Impeded . | . . . . Haulers Reinforced . | . . . . Active Scanning Responses . | . . . . Cargo Convoy Interrupts . | . . . . Stealth | -11 -10 -9 -9 --------- Run | Yrd Mat Mat Sto Distress Signals 8 | . . 6 2 Communications Jammed . | . . . . Distress Signals . | . . . . Times Spotted 76 | 1 14 38 23 Peak Tracking Total 8 | 1 8 6 3 Tactical Retreats 4 | . 2 2 . Traps | -11 -10 -9 -9 ------- Run | Yrd Mat Mat Sto Traps Triggered 3 | . 1 . 2 Indirectly . | . . . . Trap Hack Attempts . | . . . . Triggered . | . . . . Disarmed . | . . . . Reprogrammed . | . . . . Reused . | . . . . Traps Extracted . | . . . . Installed . | . . . . Triggered . | . . . . Machines | -11 -10 -9 -9 ---------- Run | Yrd Mat Mat Sto Machines Disabled 3 | . . 3 . Max in Single Turn 1 | . . 1 . Machines Repaired . | . . . . Machines Dismantled . | . . . . Machines Sabotaged . | . . . . Overloaded Fab Kills . | . . . . Hacking | -11 -10 -9 -9 --------- Run | Yrd Mat Mat Sto Machines Accessed 17 | . 4 8 5 Terminals 12 | . 3 6 3 Fabricators . | . . . . Repair Stations . | . . . . Recycling Units 3 | . 1 1 1 Scanalyzers 1 | . . 1 . Garrison Access 1 | . . . 1 Total Hacks 55 | . 13 30 12 Successful 39 | . 10 21 8 Failed 16 | . 3 9 4 Catastrophic 1 | . 1 . . Database Lockouts . | . . . . Manual . | . . . . Terminals 41 | . 11 23 7 Fabricators . | . . . . Repair Stations . | . . . . Recycling Units 6 | . 2 1 3 Scanalyzers 6 | . . 6 . Garrison Access 2 | . . . 2 Terminal Hacks 27 | . 8 14 5 Record 3 | . . 3 . Prototype ID Bank 3 | . 1 1 1 Open Door 1 | . . . 1 Branch Access Points 1 | . . 1 . Emergency Access Points 1 | . 1 . . Scanalyzer Index 1 | . . 1 . Alert Level 6 | . 3 2 1 Unreport Threat 2 | . 1 1 . Locate Traps 2 | . 1 . 1 Maintenance Status 1 | . . 1 . Surveillance Status 1 | . . 1 . Hauler Manifests 1 | . . 1 . Zone Layout 4 | . 1 2 1 Fabricator Hacks . | . . . . Repair Station Hacks . | . . . . Recycling Unit Hacks 5 | . 2 1 2 Report Inventory 3 | . 1 1 1 Retrieve Matter 1 | . . . 1 Retrieve Components 1 | . 1 . . Scanalyzer 6 | . . 6 . Insert Component 3 | . . 3 . Analyze 3 | . . 3 . Garrison Access Hacks 1 | . . . 1 Coupler Status 1 | . . . 1 Unauthorized Hacks . | . . . . Terminals . | . . . . Fabricators . | . . . . Repair Stations . | . . . . Recycling Units . | . . . . Scanalyzers . | . . . . Garrison Access . | . . . . Data Cores Recovered 2 | . . 2 . Used . | . . . . Hacking Detections 12 | . 3 6 3 Full Trace Events . | . . . . Feedback Events . | . . . . Feedback Blocked . | . . . . Robot Schematics Acquired . | . . . . Robots Built . | . . . . Authchips . | . . . . Time . | . . . . Total Robot Build Rating . | . . . . Part Schematics Acquired 3 | . . 3 . Parts Built . | . . . . Authchips . | . . . . Time . | . . . . Total Part Build Rating . | . . . . Parts Repaired . | . . . . Time . | . . . . Parts Recycled . | . . . . Recycled Matter . | . . . . Retrieved Matter . | . . . . Retrieved Components 4 | . 4 . . Parts Scanalyzed 3 | . . 3 . Part Schematics Acquired 3 | . . 3 . Parts Damaged . | . . . . Bothacking | -11 -10 -9 -9 ------------ Run | Yrd Mat Mat Sto Used RIF Installer . | . . . . Robots Hacked . | . . . . Non-combat . | . . . . Combat . | . . . . Robot Hacks Applied . | . . . . Relay Couplers Released . | . . . . Fabnet Peak Effective % . | . . . . Robots Rewired . | . . . . Allies Hacked . | . . . . Hacks Repelled . | . . . . Allies | -11 -10 -9 -9 -------- Run | Yrd Mat Mat Sto Total Allies . | . . . . Largest Group . | . . . . Highest-Rated Group . | . . . . Highest-Rated Ally . | . . . . Total Orders . | . . . . Ally Attacks . | . . . . Total Damage . | . . . . Kills . | . . . . Allies Corrupted . | . . . . Allies Melted . | . . . . Intel | -11 -10 -9 -9 ------- Run | Yrd Mat Mat Sto Robot Analysis Total . | . . . . Derelict Logs Recovered . | . . . . Drone Launches . | . . . . Drone Recoveries . | . . . . Exploration | -11 -10 -9 -9 ------------- Run | Yrd Mat Mat Sto Turns Passed 2646 | 128 428 1027 1063 Spaces Moved 1304 | 84 287 480 453 Core 21 | 16 . 5 . Treads 670 | . . 217 453 Legs 418 | 68 162 188 . Wheels 195 | . 125 70 . Hover . | . . . . Flight . | . . . . Fastest Speed 50 | 50 90 90 160 Average Speed 139 | 106 107 144 160 Slowest Speed 240 | 120 190 190 240 Overloaded Moves . | . . . . Propulsion Burnouts . | . . . . Robots Hopped . | . . . . Cave-ins Triggered . | . . . . Exploration Rate (%) 34 | 5 45 42 46 Regions Visited 3 Branch Regions 1 Pre-discovered Areas . | . . . . Known Exits Taken 1 | . . 1 . Unknown Exits Taken 2 | 1 1 . . Scrap Searched . | . . . . Spaces Dug . | . . . . Terrain Destroyed . | . . . . Melee . | . . . . Projectile . | . . . . AOE . | . . . . Terrain Rammed . | . . . . Walls Destroyed . | . . . . Machines Disabled . | . . . . Actions | -11 -10 -9 -9 --------- Run | Yrd Mat Mat Sto Total 1731 | 108 343 676 604 Wait 54 | . . 45 9 Move 1301 | 83 286 479 453 Hop . | . . . . Pick Up 52 | 8 8 22 14 Fast Attach 7 | . 1 4 2 Attach 32 | 6 7 13 6 Detach 8 | . 4 4 . Swap 6 | . . 5 1 Drop 36 | . 4 17 15 Fire 235 | 11 33 87 104 Melee . | . . . . Ram . | . . . . Kick . | . . . . Crush . | . . . . Escape Stasis . | . . . . Rewire . | . . . . Trap . | . . . . Miscellaneous . | . . . . Route ------- -11/Scrapyard -10/Materials -9/Materials (discovered 3 exits: *Mat / *Min / *Sto) -9/Storage History --------- Turn | Location | Event 2 | -11/Scrapyard | Met Revision 17 65 | -11/Scrapyard | Discovered new exit (range 8) 129 | -11/Scrapyard | Entered Materials 315 | -10/Materials | Build established: Mutant 534 | -10/Materials | Discovered new exit (range 4) 557 | -10/Materials | Entered another Materials area 557 | -9/Materials | Evolved 2 slots: Utility x2 1049 | -9/Materials | Identified exit to Mines 1049 | -9/Materials | Identified exit to Storage 1102 | -9/Materials | Build established: Scavenger-Mutant 1474 | -9/Materials | Discovered new exit (range 8) 1529 | -9/Materials | Identified exit to Materials 1584 | -9/Materials | Entered Storage 1630 | -9/Storage | Core integrity fell below 50% 1711 | -9/Storage | Garrison activated, responded to threat 2125 | -9/Storage | Found Prototype Protection 2278 | -9/Storage | Core integrity fell below 20% 2612 | -9/Storage | Garrison activated, responded to threat 2647 | -9/Storage | Destroyed by G-34 Mercenary with Small Laser Last Messages --------------- 02579_ An alarm sounds. 02579_ ALERT: Alarm triggered, dispatching investigation squad. 02590_ G-34 Mercenary suffers critical hit (Burn). 02595_ G-34 Mercenary heat spikes uncontrollably. 02596_ G-34 Mercenary overheating. 02596_ Melted Aluminum Leg. 02597_ G-34 Mercenary heat spikes uncontrollably. 02597_ G-34 Mercenary overheating. 02602_ Melted Sml. Laser. 02603_ G-34 Mercenary heat damages core (-4). 02603_ Ion Engine melted. 02605_ G-34 Mercenary destroyed. 02609_ R-06 Scavenger collects Aluminum Leg. 02612_ R-06 Scavenger calls for garrison support. 02612_ ALERT: Activating Garrison Access S001. 02615_ Destroyed Lgt. Ion Engine. 02621_ U-05 Engineer builds a Door. 02641_ Lgt. Treads melted. 02641_ Hvy. Assault Rifle melted. 02641_ Y-45 Defender destroyed. Map ----- +----------------------------------------------------+ | ???????????????? # # ! # ?# | | ????????????????" # # "T"% # ?# | | ????????????????" # + """ # ?# | | ????????????????" # # ! + ?# | | ???????????????? # # %*%= ! # ?# | | ???????????????? # # [ ###### # ?# | | ????????????????????????+ #????# + ??## | | ??????????????????????#### #????# ####+#####??? | | ??????????????# # ######%#??? ?????? | | ??????????????# + + ## #???"""#????? | | ??????????????# # ### #T#### #?????"#????? | | ??????????????# ??## ####+###??# #??????#????? | | ??????????????####+##### # #????# ????????????? | | ?????????? ^ + #????# ????????????? | | ?????????????????# ##### # #????# #???????????? | | ???????????????????????# # #????# #???????????? | | ???????????????????????# + #????# #???????????? | | ???????????????????????# # #????# #???????????? | | ???????????????????????# # #????# #???????????? | | ???????????????????????# ######????# #???????????? | | ???????????????????????# #???#####?# #???????????? | | ???????????????????????# #???# ### ############# | | ???????????????????????# #???# =%% %! | | ???????????????????????# #???# ### ##+######## | | ???????????????????????# ######u## #??????# | | ???????????????????????# @= g %## """ #??????# | | ???????????????????????# ! g ## "G" #??????# | | ???????????????????????# %## " " #??????# | | ???????????????????????# ## #??????+ | | ???????????????????????# ###### ## #??????# | | ???????????????????????# #???# ### ####??????# | | ???????????????????????# #???# % #?###?????????# | | ???????????????????????# #???# #?????????????### | | ???????????????????????# #???##!##???????????????? | | ???????????????????????#+######!#????????###?????? | | ???????????????????????# #%#????????# ######? | | ???????????????????????# """ #[#??????### % ## | | ???????????????????????#! """ #*#??????#"" """ +% | | ???????????????????????# """ + #??????#"Y """ ## | | ???????????????????????# # #??????#"" """ #? | | ???????????????????????# # ########## [#? | | ???????????????????????#####+## % # *#? | | ???????????????????????????# #####+## ####+###? | | ???????????????????????????# # # ### #?? | | ???????????????????????????# # + #?? | | ????????????????????????####+#### ##### #?? | | ????????????????????????# # #???#####?? | | ????????????????????????# # #?????????? | | ????????????????????????# # #?????????? | | ????????????????????????# ########?????????? | +----------------------------------------------------+ Best States ------------- Heat Dissipation 42 Energy Generation 14 Energy Capacity 280 Matter Stores 500 Matter Capacity 500 Sight Range 16 Terrain Scan Density 10 Core Shielding 20 Evasion (%) 55 Recoil Reduction 2 Offensive Hacking 10 Item Schematics ----------------- Hvy. Ion Engine | -9/Materials | Scanalyzed Imp. Treads | -9/Materials | Scanalyzed Rocket Launcher | -9/Materials | Scanalyzed Robot Schematics ------------------ None Fabricated ------------ Nothing Alien Tech Used ----------------- None Achievements -------------- None Challenges ------------ None Game ------ Seed VisualFlakAmplifier Manual? 0 Play Time 01:09:58 Cumulative 11.4 hours Start 2024.03.12 @ 23:47:09 End 2024.03.13 @ 01:02:58 Sessions 1 Manual Loads 0 Difficulty Rogue Special Mode None Game No. 6 Rogue 6 Adventurer 0 Explorer 0 Win Type - Total 0 Types 0/0/0/0/0/0/0/0/0 Lore% 4 Gallery% 12 Achievement% 10 Wizard Run 0 Options --------- Layout 0 ASCII 1 Keyboard 0 Movement Mouse Keybinds 0 Fullscreen 2 Font 18/Terminus Map View 76x50 Zoom Use 0% Tactical HUD 1 Map Filters NONE Filters NONE Steam 1 RUN: 995c414f-6fda-4dd6-8512-612cec24f5c5